bitfinex-derivatives/quotes_SOLF0:USTF0_20240913
["timestamp","ask_amount","ask_price","bid_price","bid_amount"]
[1726236827622,9.9944,133.13,133.1,3.7559]
[1726236827821,6.2392,133.13,133.1,3.7559]
[1726236829925,9.9943,133.13,133.1,3.7559]
[1726236830228,18.04,133.12,133.06,3.7569]
[1726236830438,3.7561,133.1,133.06,3.7569]
[1726236830730,3.72829415,133.1,133.05,3.7573]
[1726236830921,18.04,133.11,133.05,3.7573]
[1726236831334,3.7564,133.09,133.05,3.7573]
[1726236831532,7.59595285,133.09,133.05,3.7573]
[1726236832227,3.83955285,133.09,133.04,18.04]
[1726236832532,18.04,133.12,133.04,18.04]
[1726236832934,3.7559,133.11,133.06,3.757]
[1726236833135,3.7559,133.11,133.04,18.04]
[1726236833322,18.04,133.12,133.04,18.04]
[1726236833525,3.7559,133.11,133.06,3.757]
[1726236833721,3.7559,133.11,133.04,18.04]
[1726236833931,3.79258152,133.1,133.04,18.04]
[1726236834137,3.7559,133.11,133.04,18.04]
[1726236834330,3.7559,133.11,133.07,3.7566]
[1726236834530,3.68993705,133.1,133.04,18.04]
[1726236834731,18.04,133.12,132.98,1.727]
[1726236834931,3.7561,133.1,133.02,18.04]
[1726236835135,7.56748087,133.1,133.02,18.04]
[1726236835336,3.7561,133.1,133.02,18.04]
[1726236835527,3.7563,133.09,133.05,3.7572]
[1726236835727,3.76776637,133.1,133.02,18.04]
[1726236835929,18.04,133.11,133.02,18.04]
[1726236836135,3.7561,133.1,133.06,3.757]
[1726236836335,7.53138611,133.1,133.06,3.757]
[1726236837129,3.77528611,133.1,133.07,3.7567]
[1726236837329,21.7957,133.11,133.07,3.7567]
[1726236838339,6.2392,133.13,133.06,18.04]
[1726236839428,4.1902,133.13,133.08,18.04]
[1726236840236,4.1902,133.13,133.01,11.33364469]
[1726236840237,4.1902,133.13,133.06,18.04]
[1726236840635,4.1902,133.13,133.09,3.7561]
[1726236841441,4.1902,133.13,133.1,3.7557]
[1726236841639,4.1902,133.13,133.07,18.04]
[1726236842740,4.1902,133.13,133.06,18.04]
[1726236842938,4.1902,133.13,133.04,18.04]
[1726236843140,4.1902,133.13,133.06,18.04]
[1726236843747,4.1902,133.13,133.08,3.7563]
[1726236844644,18.04,133.12,133.04,18.04]
[1726236845231,4.1902,133.13,133.04,18.04]
[1726236845842,4.1902,133.13,133.07,3.7566]
[1726236846339,4.1902,133.13,133.04,18.04]
[1726236846340,4.1902,133.13,133.08,3.7565]
[1726236846933,4.1902,133.13,133.1,3.7557]
[1726236848445,4.1902,133.13,133.11,3.7557]
[1726236848649,4.1902,133.13,133.08,18.04]
[1726236849246,4.1902,133.13,133.06,18.04]
[1726236849741,4.1902,133.13,133.08,3.7565]
[1726236849943,4.1902,133.13,133.06,18.04]
[1726236851241,2.1906,133.16,133.09,18.04]
[1726236851438,2.1906,133.16,133.11,18.04]
[1726236851950,2.1906,133.16,133.09,18.04]
[1726236853442,3.7547,133.15,133.09,18.04]
[1726236854055,3.7547,133.15,133.11,3.7555]
[1726236854243,2.1906,133.16,133.11,3.7555]
[1726236854749,3.7547,133.15,133.11,3.7555]
[1726236855350,5.945,133.16,133.12,3.7554]
[1726236855946,3.7546,133.15,133.11,3.7556]
[1726236856945,5.945,133.16,133.12,3.7554]
[1726236857138,2.1906,133.16,133.09,18.04]
[1726236857353,3.83129088,133.17,133.09,18.04]
[1726236857543,3.754,133.17,133.13,3.755]
[1726236857744,7.42215431,133.17,133.13,3.755]
[1726236857944,7.42215431,133.17,133.09,18.04]
[1726236858141,3.66815431,133.17,133.11,18.04]
[1726236858344,4.1196,133.19,133.11,18.04]
[1726236858547,7.87476853,133.19,133.13,18.04]
[1726236859252,7.87476853,133.19,133.16,3.7541]
[1726236859949,7.87476853,133.19,133.17,3.7538]
[1726236860469,7.87476853,133.19,133.16,3.7541]
[1726236860652,25.91476853,133.19,133.1,1.7319]
[1726236860855,25.91476853,133.19,133.1,19.7719]
[1726236861156,3.7539,133.18,133.14,3.7548]
[1726236863453,3.7539,133.18,133.15,3.7545]
[1726236864047,7.87476853,133.19,133.16,3.7542]
[1726236864453,7.87476853,133.19,133.16,18.04]
[1726236864454,3.75516853,133.19,133.16,18.04]
[1726236864763,3.72567023,133.21,133.16,18.04]
[1726236865055,3.7525,133.23,133.19,3.7533]
[1726236865254,3.71890653,133.23,133.19,18.04]
[1726236865458,4.264,133.25,133.19,18.04]
[1726236865759,3.7523,133.23,133.17,18.04]
[1726236866059,3.80157395,133.23,133.17,18.04]
[1726236866257,4.264,133.25,133.17,18.04]
[1726236866457,3.7522,133.24,133.2,3.7531]
[1726236866645,3.70951251,133.23,133.2,3.7531]
[1726236867553,18.04,133.24,133.15,18.04]
[1726236867755,18.04,133.22,133.13,18.04]
[1726236868255,3.753,133.21,133.13,18.04]
[1726236868454,3.80315082,133.21,133.13,18.04]
[1726236868653,21.7926,133.22,133.18,3.7535]
[1726236869150,25.62354669,133.22,133.18,3.7535]
[1726236869347,3.7529,133.21,133.17,3.7539]
[1726236869547,3.7529,133.21,133.15,18.04]
[1726236869753,25.62364669,133.22,133.18,3.7537]
[1726236870148,3.83094669,133.22,133.15,18.04]
[1726236870354,6.3128,133.25,133.17,18.04]
[1726236871160,3.7521,133.24,133.18,18.04]
[1726236871359,3.72539752,133.23,133.18,18.04]
[1726236871963,3.72539752,133.23,133.21,3.7528]
[1726236872159,10.0647,133.25,133.21,3.7528]
[1726236872360,6.3128,133.25,133.11,7.5114]
[1726236872667,6.3128,133.25,133.17,18.04]
[1726236874151,3.7522,133.24,133.2,3.753]
[1726236874346,7.5838903,133.24,133.2,3.753]
[1726236875562,21.8716903,133.24,133.15,18.04]
[1726236876062,3.7533,133.2,133.16,3.7541]
[1726236876762,7.46593072,133.2,133.16,3.7541]
[1726236876956,3.71263072,133.2,133.13,18.04]
[1726236877262,21.793,133.21,133.13,18.04]
[1726236877459,3.753,133.21,133.17,3.7538]
[1726236877757,3.67562481,133.21,133.13,18.04]
[1726236877963,18.04,133.23,133.13,18.04]
[1726236878167,21.82756514,133.23,133.13,18.04]
[1726236878359,3.7529,133.21,133.13,18.04]
[1726236878559,3.7529,133.21,133.17,3.7538]
[1726236879764,3.7527,133.22,133.18,3.7536]
[1726236880357,3.7529,133.21,133.17,3.7539]
[1726236880961,3.7531,133.2,133.17,3.7539]
[1726236881158,3.7531,133.2,133.16,3.7542]
[1726236881660,3.7531,133.2,133.17,3.754]
[1726236881870,3.7531,133.2,133.13,18.04]
[1726236882166,3.7534,133.19,133.15,3.7544]
[1726236882554,3.7534,133.19,133.13,18.04]
[1726236882966,3.7534,133.19,133.15,3.7545]
[1726236884958,4.1474,133.2,133.13,18.04]
[1726236885470,7.9007,133.2,133.16,3.754]
[1726236886969,21.82756514,133.23,133.13,18.04]
[1726236887163,18.04,133.23,133.15,18.04]
[1726236887355,3.7529,133.21,133.1,9.2437]
[1726236887561,3.81293033,133.21,133.13,18.04]
[1726236887857,4.1204,133.24,133.1,9.2437]
[1726236887858,3.7527,133.22,133.15,18.04]
[1726236888059,3.6829398,133.22,133.16,18.04]
[1726236888263,22.1604,133.24,133.16,18.04]
[1726236888466,3.7526,133.22,133.16,18.04]
[1726236888672,7.47310931,133.22,133.16,18.04]
[1726236888967,7.47310931,133.22,133.18,3.7535]
[1726236889366,7.47310931,133.22,133.11,7.5112]
[1726236889367,3.753,133.21,133.14,18.04]
[1726236889566,3.753,133.21,133.17,3.7538]
[1726236890170,3.7532,133.2,133.16,3.754]
[1726236890361,3.7532,133.2,133.14,18.04]
[1726236891568,3.753,133.21,133.17,3.7537]
[1726236891766,3.753,133.21,133.14,18.04]
[1726236892170,7.57888728,133.21,133.17,3.7538]
[1726236892356,3.7533,133.2,133.17,3.7538]
[1726236892561,18.04,133.21,133.13,18.04]
[1726236892761,3.7533,133.2,133.13,18.04]
[1726236893069,18.04,133.22,133.13,18.04]
[1726236893256,18.04,133.22,133.17,3.7538]
[1726236893457,21.85048455,133.22,133.14,18.04]
[1726236893658,3.81048455,133.22,133.16,18.04]
[1726236893863,3.7524,133.23,133.16,18.04]
[1726236894170,7.52794666,133.23,133.16,18.04]
[1726236894367,3.77554666,133.23,133.19,3.7532]
[1726236894559,3.7524,133.23,133.19,3.7532]
[1726236894766,7.51028987,133.23,133.19,3.7532]
[1726236895069,3.7524,133.23,133.19,3.7532]
[1726236895471,3.7526,133.22,133.19,3.7532]
[1726236896468,7.50540608,133.23,133.19,3.7532]
[1726236896674,22.1604,133.24,133.18,18.04]
[1726236896675,4.1204,133.24,133.18,18.04]
[1726236896874,7.96590916,133.24,133.18,18.04]
[1726236897066,7.96590916,133.24,133.21,3.7527]
[1726236899164,11.71790916,133.24,133.21,3.7527]
[1726236899778,7.96590916,133.24,133.22,3.7524]
[1726236899967,3.84550916,133.24,133.22,3.7524]
[1726236900170,18.04,133.28,133.22,3.7524]
[1726236900372,3.7516,133.26,133.22,3.7524]
[1726236900567,21.74033408,133.28,133.21,18.04]
[1726236900568,3.70033408,133.28,133.21,18.04]
[1726236900777,3.7511,133.28,133.21,18.04]
[1726236901076,18.04,133.26,133.21,3.7527]
[1726236901275,3.7525,133.23,133.17,18.04]
[1726236901583,18.04,133.24,133.15,19.769]
[1726236901875,18.04,133.22,133.15,18.04]
[1726236902076,21.86051138,133.22,133.13,18.04]
[1726236902471,25.61331138,133.22,133.13,18.04]
[1726236902671,21.86051138,133.22,133.13,18.04]
[1726236902868,21.86051138,133.22,133.18,3.7535]
[1726236903271,25.61321138,133.22,133.18,3.7535]
[1726236904379,25.61321138,133.22,133.17,3.7538]
[1726236905175,25.61321138,133.22,133.18,3.7536]
[1726236907169,3.7529,133.21,133.17,3.7539]
[1726236909875,21.86051138,133.22,133.15,18.04]
[1726236910282,21.86051138,133.22,133.19,3.7533]
[1726236910885,3.82051138,133.22,133.2,3.753]
[1726236911083,4.2907,133.23,133.2,3.753]
[1726236911380,4.2907,133.23,133.17,18.04]
[1726236911381,3.83866027,133.22,133.13,18.04]
[1726236911573,4.1124,133.28,133.26,3.7512]
[1726236911772,4.1124,133.28,133.21,18.04]
[1726236911970,3.7516,133.26,133.21,21.7928]
[1726236912176,3.7516,133.26,133.21,3.7528]
[1726236912471,3.7519,133.25,133.2,3.753]
[1726236912672,3.7519,133.25,133.19,18.04]
[1726236913088,3.7516,133.26,133.19,18.04]
[1726236913278,4.1124,133.28,133.21,18.04]
[1726236914478,4.1124,133.28,133.17,1.7308]
[1726236914685,18.04,133.27,133.19,18.04]
[1726236914878,3.7515,133.26,133.21,3.7527]
[1726236915090,18.04,133.27,133.19,18.04]
[1726236915588,21.7914,133.27,133.19,18.04]
[1726236915985,3.7514,133.27,133.19,18.04]
[1726236916287,4.1124,133.28,133.21,18.04]
[1726236916485,4.1124,133.28,133.23,18.04]
[1726236917184,5.84050688,133.29,133.17,1.7308]
[1726236917185,3.83440688,133.29,133.24,18.04]
[1726236917385,18.04,133.31,133.22,18.04]
[1726236917586,3.7515,133.26,133.22,3.7524]
[1726236917993,3.67498738,133.25,133.19,18.04]
[1726236918190,3.7512,133.27,133.23,3.7521]
[1726236918386,7.56250665,133.27,133.23,3.7521]
[1726236918600,3.7512,133.27,133.23,3.7521]
[1726236918890,3.751,133.28,133.21,18.04]
[1726236919094,20.0983,133.3,133.21,18.04]
[1726236919289,23.84238585,133.3,133.21,18.04]
[1726236919492,3.7508,133.29,133.21,18.04]
[1726236919989,3.7508,133.29,133.25,3.7517]
[1726236920195,23.84238585,133.3,133.25,3.7517]
[1726236920697,3.7507,133.29,133.25,3.7517]
[1726236923885,3.7509,133.28,133.25,3.7517]
[1726236924191,23.84238585,133.3,133.25,3.7517]
[1726236924592,3.7509,133.29,133.25,3.7517]
[1726236924807,23.84238585,133.3,133.23,3.7521]
[1726236924994,3.7515,133.26,133.19,18.04]
[1726236926200,15.2815,133.26,133.21,11.53]
[1726236926700,15.2815,133.26,133.22,3.7523]
[1726236926894,11.53,133.26,133.21,11.53]
[1726236927299,11.53,133.26,133.23,3.7523]
[1726236927499,11.53,133.26,133.17,1.7308]
[1726236927500,2.1033,133.28,133.22,11.53]
[1726236927696,2.1033,133.28,133.24,11.53]
[1726236927897,13.6333,133.28,133.25,3.7516]
[1726236928089,5.80238585,133.3,133.24,18.01]
[1726236928294,5.80238585,133.3,133.27,3.751]
[1726236928592,3.74408585,133.3,133.25,18.01]
[1726236928797,1.9913,133.32,133.25,18.01]
[1726236929001,1.9913,133.32,133.28,3.7508]
[1726236929505,3.7501,133.31,133.28,3.7508]
[1726236930303,3.74896801,133.3,133.28,3.7508]
[1726236931003,5.7412,133.32,133.28,3.7508]
[1726236931396,5.7412,133.32,133.2,18.01]
[1726236931397,3.66111917,133.32,133.27,18.01]
[1726236931996,2.0465,133.33,133.22,1.7259]
[1726236932300,2.0465,133.33,133.24,18.01]
[1726236932500,2.0465,133.33,133.28,3.7506]
[1726236932501,3.7499,133.32,133.28,3.7506]
[1726236932701,7.56774777,133.32,133.28,3.7506]
[1726236932894,3.7499,133.32,133.28,3.7506]
[1726236933491,3.82009996,133.32,133.26,3.7513]
[1726236933702,3.82009996,133.32,133.27,18.01]
[1726236933906,2.099,133.36,133.31,18.01]
[1726236934395,8.46820111,133.37,133.31,18.01]
[1726236935794,8.46820111,133.37,133.35,3.7489]
[1726236935996,8.46820111,133.37,133.33,18.01]
[1726236936206,8.46820111,133.37,133.34,3.7491]
[1726236936898,8.46820111,133.37,133.36,3.7486]
[1726236940307,10.90916883,133.39,133.37,3.7484]
[1726236942393,10.90916883,133.39,133.38,3.7481]
[1726236942599,9.43544682,133.41,133.38,18.01]
[1726236942799,9.43544682,133.41,133.4,18.01]
[1726236943005,9.43544682,133.41,133.4,21.7575]
[1726236943602,9.43544682,133.41,133.4,3.7475]
[1726236944204,9.43544682,133.41,133.4,21.7575]
[1726236944813,12.58913943,133.42,133.41,3.7472]
[1726236956106,12.58913943,133.42,133.37,18.01]
[1726236956914,12.58913943,133.42,133.4,3.7474]
[1726236958024,16.33623943,133.42,133.39,3.7477]
[1726236959009,12.58913943,133.42,133.4,3.7474]
[1726236959922,12.58913943,133.42,133.41,3.7472]
[1726236960120,12.58913943,133.42,133.4,11.52]
[1726236960315,12.58913943,133.42,133.39,3.7477]
[1726236960825,12.58913943,133.42,133.41,15.2672]
[1726236962217,12.58913943,133.42,133.41,3.7472]
[1726236962526,12.58913943,133.42,133.37,17.99]
[1726236962915,12.58913943,133.42,133.39,17.99]
[1726236963124,3.56944935,133.43,133.41,17.99]
[1726236963422,3.56944935,133.43,133.42,17.99]
[1726236963613,3.56944935,133.43,133.42,21.737]
[1726236963817,3.56944935,133.43,133.42,3.747]
[1726236965018,3.56944935,133.43,133.35,7.4974]
[1726236965019,3.56944935,133.43,133.39,17.99]
[1726236965916,3.56944935,133.43,133.42,17.99]
[1726236966223,8.38274481,133.44,133.42,17.99]
[1726236966917,8.38274481,133.44,133.43,3.7467]
[1726236968724,8.38274481,133.44,133.42,3.7468]
[1726236969122,8.38274481,133.44,133.39,17.99]
[1726236969318,8.38274481,133.44,133.39,21.7378]
[1726236969319,4.2482,133.43,133.39,21.7378]
[1726236969722,4.2482,133.43,133.38,3.7479]
[1726236970324,3.7474,133.41,133.38,3.7479]
[1726236970518,3.7474,133.41,133.37,17.99]
[1726236970519,3.7474,133.41,133.37,21.7382]
[1726236970720,3.7474,133.41,133.37,17.99]
[1726236970926,3.747,133.42,133.37,17.99]
[1726236971127,3.747,133.42,133.39,3.7477]
[1726236971431,3.747,133.42,133.37,17.99]
[1726236971628,8.38274481,133.44,133.41,21.737]
[1726236971831,8.38274481,133.44,133.41,17.99]
[1726236972324,8.38274481,133.44,133.43,3.7467]
[1726236973121,8.38274481,133.44,133.41,17.99]
[1726236974233,8.38274481,133.44,133.43,3.7467]
[1726236976027,8.38274481,133.44,133.42,3.7468]
[1726236977342,8.38274481,133.44,133.41,21.7371]
[1726236977543,8.38274481,133.44,133.41,17.99]
[1726236977739,8.38274481,133.44,133.41,21.7371]
[1726236977941,12.12924481,133.44,133.39,17.99]
[1726236978139,12.12924481,133.44,133.37,17.99]
[1726236978140,8.38274481,133.44,133.37,17.99]
[1726236978345,8.38274481,133.44,133.39,3.7475]
[1726236978643,12.12924481,133.44,133.37,17.99]
[1726236978941,8.38274481,133.44,133.37,17.99]
[1726236979139,3.7471,133.42,133.36,17.99]
[1726236979344,26.37274481,133.44,133.38,3.748]
[1726236979544,8.38274481,133.44,133.37,17.99]
[1726236980336,8.38274481,133.44,133.39,3.7476]
[1726236980552,8.38274481,133.44,133.37,17.99]
[1726236980954,3.7467,133.43,133.39,3.7476]
[1726236981350,6.3037,133.42,133.37,17.99]
[1726236981651,3.7474,133.41,133.36,17.99]
[1726236981851,6.3037,133.42,133.36,17.99]
[1726236982758,10.0508,133.42,133.36,17.99]
[1726236983056,6.3037,133.42,133.36,17.99]
[1726236983451,6.3037,133.42,133.37,17.99]
[1726236983856,4.2792,133.42,133.39,17.99]
[1726236984857,4.2792,133.42,133.4,3.7474]
[1726236985455,4.2792,133.42,133.4,3.7473]
[1726236986152,4.2792,133.42,133.39,17.99]
[1726236986153,4.2792,133.42,133.41,3.7472]
[1726236986357,2.12,133.42,133.41,3.7472]
[1726236986651,2.12,133.42,133.39,17.99]
[1726236986652,8.38274481,133.44,133.39,17.99]
[1726236988151,8.38274481,133.44,133.4,3.7473]
[1726236988352,3.7467,133.43,133.4,3.7473]
[1726236988557,3.7467,133.43,133.39,17.99]
[1726236988757,8.38274481,133.44,133.39,17.99]
[1726236988958,12.12944481,133.44,133.39,17.99]
[1726236989153,12.12944481,133.44,133.4,3.7473]
[1726236989552,8.38274481,133.44,133.39,17.99]
[1726236990861,8.38274481,133.44,133.41,3.7471]
[1726236991255,8.38274481,133.44,133.39,17.99]
[1726236991461,12.12914481,133.44,133.39,17.99]
[1726236991760,8.38274481,133.44,133.39,17.99]
[1726236992558,8.38274481,133.44,133.42,3.7469]
[1726236993152,8.38274481,133.44,133.43,3.7467]
[1726236993350,8.38274481,133.44,133.39,17.99]
[1726236993559,8.38274481,133.44,133.42,3.7469]
[1726236994557,8.38274481,133.44,133.43,3.7467]
[1726236994849,8.38274481,133.44,133.41,17.99]
[1726236995053,8.38274481,133.44,133.42,3.7468]
[1726236995459,8.38274481,133.44,133.4,3.7474]
[1726236995654,8.38274481,133.44,133.39,17.99]
[1726236996264,8.38274481,133.44,133.42,3.7469]
[1726236997454,8.38274481,133.44,133.41,3.7471]
[1726236997958,8.38274481,133.44,133.42,3.7468]
[1726236998366,8.38274481,133.44,133.39,17.99]
[1726236998561,8.38274481,133.44,133.41,3.7471]
[1726236998960,8.38274481,133.44,133.39,17.99]
[1726236999161,8.38274481,133.44,133.42,3.7469]
[1726236999666,8.38274481,133.44,133.39,17.99]
[1726237000369,8.38274481,133.44,133.43,3.7467]
[1726237000565,8.38274481,133.44,133.39,17.99]
[1726237001455,8.38274481,133.44,133.42,3.7467]
[1726237001868,8.38274481,133.44,133.39,17.99]
[1726237002366,3.7468,133.43,133.39,17.99]
[1726237002773,8.38274481,133.44,133.39,17.99]
[1726237003062,12.12934481,133.44,133.39,17.99]
[1726237003268,12.12934481,133.44,133.4,3.7474]
[1726237003269,8.38274481,133.44,133.4,3.7474]
[1726237003465,3.7467,133.43,133.4,3.7474]
[1726237003667,8.38274481,133.44,133.39,17.99]
[1726237003960,8.38274481,133.44,133.41,3.7471]
[1726237004166,12.12934481,133.44,133.41,3.7471]
[1726237005366,8.38274481,133.44,133.39,17.99]
[1726237006366,8.38274481,133.44,133.43,3.7467]
[1726237008170,8.38274481,133.44,133.43,15.2567]
[1726237010077,8.38274481,133.44,133.43,21.7367]
[1726237010272,8.38274481,133.44,133.43,3.7467]
[1726237010575,8.38274481,133.44,133.43,21.7367]
[1726237013277,8.38274481,133.44,133.43,3.7467]
[1726237015569,8.38274481,133.44,133.42,3.7468]
[1726237015775,8.38274481,133.44,133.42,17.99]
[1726237015971,8.38274481,133.44,133.43,3.7467]
[1726237016575,8.38274481,133.44,133.42,17.99]
[1726237017580,8.38274481,133.44,133.43,3.7467]
[1726237018082,10.27844352,133.45,133.42,17.99]
[1726237018269,4.46370614,133.47,133.44,17.99]
[1726237018475,2.66627681,133.48,133.46,17.99]
[1726237019175,2.66627681,133.48,133.47,3.7455]
[1726237021680,3.67519333,133.5,133.48,3.7453]
[1726237021882,3.69766154,133.51,133.48,17.99]
[1726237022182,3.69766154,133.51,133.5,21.7347]
[1726237023586,3.69766154,133.51,133.5,17.99]
[1726237024380,3.69766154,133.51,133.5,21.7347]
[1726237026386,3.69766154,133.51,133.42,7.4938]
[1726237026387,3.69766154,133.51,133.49,21.7349]
[1726237026583,3.69766154,133.51,133.49,17.99]
[1726237027275,3.69766154,133.51,133.5,3.7447]
[1726237030086,3.69766154,133.51,133.5,21.7347]
[1726237030387,5.22120452,133.52,133.51,3.7444]
[1726237030679,5.22120452,133.52,133.51,15.2544]
[1726237031282,5.22120452,133.52,133.51,3.7444]
[1726237031479,5.22120452,133.52,133.51,15.2544]
[1726237032483,5.22120452,133.52,133.51,3.7444]
[1726237032683,5.22120452,133.52,133.51,15.2544]
[1726237033581,5.22120452,133.52,133.51,3.7444]
[1726237033782,5.22120452,133.52,133.51,15.2544]
[1726237034875,3.7446,133.51,133.49,11.51]
[1726237035289,3.7446,133.51,133.49,15.255]
[1726237035589,8.96550452,133.52,133.49,15.255]
[1726237036091,8.96550452,133.52,133.49,3.745]
[1726237038285,5.22120452,133.52,133.5,3.7447]
[1726237038792,5.22120452,133.52,133.51,3.7444]
[1726237039492,5.22120452,133.52,133.51,21.7444]
[1726237040089,5.22120452,133.52,133.49,18.0]
[1726237040892,5.22120452,133.52,133.51,3.7444]
[1726237041787,5.22120452,133.52,133.5,3.7446]
[1726237042189,8.96540452,133.52,133.5,3.7446]
[1726237042389,5.22120452,133.52,133.49,3.7448]
[1726237042597,5.22120452,133.52,133.39,29.2432]
[1726237042598,5.22120452,133.52,133.46,18.0]
[1726237042893,7.38030452,133.52,133.46,18.0]
[1726237043282,7.38030452,133.52,133.44,18.0]
[1726237043483,3.7449,133.5,133.45,3.7459]
[1726237043699,18.0,133.51,133.44,18.0]
[1726237043900,4.1829,133.49,133.44,18.0]
[1726237044199,7.9281,133.49,133.45,3.7459]
[1726237045990,3.7453,133.48,133.44,21.7463]
[1726237046190,3.7453,133.48,133.44,18.0]
[1726237046495,4.1829,133.49,133.45,3.746]
[1726237046496,7.928,133.49,133.45,3.746]
[1726237047296,4.1829,133.49,133.45,3.746]
[1726237047892,4.1829,133.49,133.46,3.7458]
[1726237048591,4.1829,133.49,133.45,3.746]
[1726237048592,7.9281,133.49,133.45,3.746]
[1726237049198,7.9281,133.49,133.44,18.0]
[1726237049199,3.7453,133.48,133.44,18.0]
[1726237050497,3.7453,133.48,133.45,3.746]
[1726237050698,3.7453,133.48,133.44,18.0]
[1726237051200,3.7453,133.48,133.44,21.7462]
[1726237051403,3.7453,133.48,133.44,18.0]
[1726237051813,3.7453,133.48,133.45,3.7461]
[1726237053203,3.7453,133.48,133.44,3.7461]
[1726237053600,3.7453,133.48,133.43,18.0]
[1726237053903,7.9281,133.49,133.45,21.7459]
[1726237054299,7.9281,133.49,133.45,18.0]
[1726237054504,7.9281,133.49,133.46,3.7458]
[1726237054700,7.9281,133.49,133.45,18.0]
[1726237054892,3.7453,133.48,133.45,18.0]
[1726237055297,3.7453,133.48,133.45,21.7459]
[1726237055502,3.7453,133.48,133.45,3.7459]
[1726237055806,3.7453,133.48,133.43,18.0]
[1726237056106,3.7453,133.48,133.44,3.7462]
[1726237056302,3.7453,133.48,133.43,18.0]
[1726237056905,7.928,133.49,133.43,18.0]
[1726237057402,7.928,133.49,133.46,3.7456]
[1726237059213,3.7453,133.48,133.45,11.51]
[1726237059427,4.1829,133.49,133.45,11.51]
[1726237059829,4.1829,133.49,133.45,15.256]
[1726237060124,4.1829,133.49,133.44,11.51]
[1726237060324,3.7454,133.48,133.44,11.51]
[1726237060523,4.1829,133.49,133.45,11.51]
[1726237060927,3.7453,133.48,133.45,11.51]
[1726237061124,4.1829,133.49,133.46,3.7457]
[1726237061323,4.1829,133.49,133.45,11.51]
[1726237062233,3.7453,133.48,133.45,11.51]
[1726237062425,3.7453,133.48,133.4,336.23832]
[1726237062735,7.928,133.49,133.46,3.7458]
[1726237063231,3.7453,133.48,133.45,15.256]
[1726237066125,4.1829,133.49,133.4,336.23832]
[1726237066431,4.1829,133.49,133.47,11.51]
[1726237067031,7.9279,133.49,133.46,15.2557]
[1726237067334,4.1829,133.49,133.46,11.51]
[1726237067634,3.7454,133.48,133.46,15.2558]
[1726237068730,7.928,133.49,133.46,15.2558]
[1726237071731,4.1829,133.49,133.4,336.23832]
[1726237071927,4.1829,133.49,133.45,11.51]
[1726237072130,15.6929,133.49,133.45,11.51]
[1726237072338,19.4381,133.49,133.46,3.7458]
[1726237075234,7.9281,133.49,133.46,3.7458]
[1726237075635,3.7453,133.48,133.45,15.256]
[1726237077738,4.1829,133.49,133.45,11.51]
[1726237078241,7.9281,133.49,133.46,3.7457]
[1726237080134,7.38030452,133.52,133.46,11.51]
[1726237080437,5.22120452,133.52,133.51,11.51]
[1726237081145,5.22120452,133.52,133.44,3.67239817]
[1726237081439,5.22120452,133.52,133.49,11.51]
[1726237081641,5.22120452,133.52,133.51,11.51]
[1726237081832,5.22120452,133.52,133.51,15.2544]
[1726237085642,5.22120452,133.52,133.51,11.51]
[1726237086338,5.22120452,133.52,133.51,15.2544]
[1726237087534,5.22120452,133.52,133.5,3.7445]
[1726237087742,11.51,133.51,133.37,11.33683577]
[1726237087935,11.51,133.49,133.45,11.51]